bitfinex-derivatives/quotes_SOLF0:USTF0_20251024
["timestamp","ask_amount","ask_price","bid_price","bid_amount"]
[1761282875719,3.84130114,193.36,193.3,2.21]
[1761282876018,2.65,193.37,193.3,2.21]
[1761282876220,3.84117472,193.36,193.3,2.21]
[1761282876421,2.65,193.37,193.3,2.21]
[1761282876615,2.65,193.35,193.3,2.21]
[1761282876821,2.65,193.35,193.29,43.14]
[1761282877212,2.65,193.33,193.29,43.14]
[1761282878017,2.65,193.33,193.29,2.21]
[1761282878923,2.65,193.33,193.29,3.71656106]
[1761282880622,2.65,193.33,193.3,2.21]
[1761282880818,2.65,193.36,193.32,2.21]
[1761282881221,3.84147283,193.35,193.32,2.21]
[1761282881417,2.65,193.36,193.32,2.21]
[1761282881626,6.49154785,193.35,193.32,2.21]
[1761282881824,2.65,193.35,193.32,2.21]
[1761282882926,2.65,193.35,193.32,3.71656106]
[1761282885031,2.65,193.4,193.33,2.21]
[1761282885228,2.65,193.38,193.33,2.21]
[1761282885429,2.65,193.36,193.33,2.21]
[1761282889532,8.63029854,193.4,193.35,2.21]
[1761282889533,2.65,193.38,193.35,2.21]
[1761282889739,7.25110054,193.38,193.35,2.21]
[1761282889938,2.65,193.4,193.36,3.71656106]
[1761282890234,11.09117404,193.39,193.36,3.71656106]
[1761282890431,8.44117404,193.38,193.36,3.71656106]
[1761282890627,4.60110054,193.38,193.36,3.71656106]
[1761282890826,7.25110054,193.38,193.36,3.71656106]
[1761282891022,2.65,193.38,193.36,3.71656106]
[1761282892334,7.25042073,193.38,193.36,3.71656106]
[1761282892538,2.65,193.38,193.36,3.71656106]
[1761282892926,7.25042073,193.38,193.36,3.71656106]
[1761282893130,2.65,193.38,193.36,3.71656106]
[1761282893725,7.25042073,193.38,193.36,3.71656106]
[1761282893923,2.65,193.38,193.36,3.71656106]
[1761282894333,4.60042073,193.39,193.36,3.71656106]
[1761282894334,2.65,193.4,193.37,2.21]
[1761282894528,8.43997667,193.39,193.38,1.50656106]
[1761282894932,8.43997667,193.39,193.38,3.71656106]
[1761282895232,2.65,193.42,193.39,2.21]
[1761282895421,4.84044352,193.45,193.33,47.774]
[1761282895422,11.08646179,193.41,193.4,1.50656106]
[1761282896222,6.48814353,193.41,193.4,1.50656106]
[1761282897334,2.65,193.44,193.4,1.50656106]
[1761282897539,8.42989438,193.43,193.42,1.50656106]
[1761282897837,11.07976856,193.43,193.42,1.50656106]
[1761282898036,3.83403759,193.43,193.42,1.50656106]
[1761282898231,2.65,193.44,193.42,1.50656106]
[1761282898732,2.65,193.47,193.42,3.71656106]
[1761282898931,2.65,193.45,193.42,3.71656106]
[1761282899132,6.48189701,193.45,193.42,3.71656106]
[1761282899327,6.48189701,193.45,193.43,2.21]
[1761282899536,2.65,193.45,193.43,2.21]
[1761282899936,2.65,193.45,193.44,1.50656106]
[1761282900337,6.48039227,193.45,193.44,1.50656106]
[1761282900930,2.65,193.45,193.44,1.50656106]
[1761282901338,6.48039227,193.45,193.44,1.50656106]
[1761282902040,2.65,193.45,193.44,1.50656106]
[1761282902430,7.30771876,193.45,193.44,1.50656106]
[1761282902741,2.65,193.45,193.44,1.50656106]
[1761282903036,2.63,193.47,193.44,3.71656106]
[1761282903236,8.48551814,193.47,193.46,3.71656106]
[1761282903438,2.63,193.51,193.46,1.50656106]
[1761282903631,2.63,193.49,193.48,1.50656106]
[1761282904328,2.63,193.49,193.43,2.21]
[1761282904535,2.63,193.49,193.44,1.50656106]
[1761282905136,2.63,193.48,193.4,1.50656106]
[1761282905333,2.63,193.47,193.4,3.71656106]
[1761282905532,2.63,193.47,193.41,2.21]
[1761282910343,2.63,193.5,193.43,2.21]
[1761282911138,2.63,193.5,193.45,2.21]
[1761282920541,2.63,193.5,193.46,1.50656106]
[1761282920742,2.63,193.5,193.47,2.21]
[1761282923452,8.44846852,193.54,193.47,2.21]
[1761282923655,2.63,193.53,193.47,3.71656106]
[1761282925950,2.63,193.53,193.48,2.21]
[1761282926150,4.63745464,193.56,193.48,2.21]
[1761282926357,2.63,193.57,193.52,2.21]
[1761282926553,2.63,193.57,193.54,1.50656106]
[1761282927454,2.63,193.57,193.48,2.21]
[1761282927759,2.86,193.56,193.47,1.50656106]
[1761282928050,2.86,193.56,193.51,1.50656106]
[1761282928256,2.86,193.56,193.51,3.71656106]
[1761282929160,2.86,193.56,193.49,1.50656106]
[1761282931463,2.63,193.55,193.49,1.50656106]
[1761282936568,2.63,193.55,193.48,1.50656106]
[1761282936773,1.50656106,193.55,193.46,2.21]
[1761282936973,2.63,193.54,193.47,1.50656106]
[1761282937370,1.50656106,193.53,193.46,2.21]
[1761282937572,2.63,193.52,193.46,2.21]
[1761282938662,2.63,193.52,193.44,43.04]
[1761282939071,2.63,193.52,193.44,45.25]
[1761282939876,2.63,193.51,193.44,45.25]
[1761282940867,2.63,193.51,193.45,2.21]
[1761282941470,2.63,193.5,193.42,94.27122864]
[1761282941779,2.63,193.48,193.42,94.27122864]
[1761282941984,2.63,193.47,193.42,94.27122864]
[1761282942278,6.44905344,193.47,193.42,94.27122864]
[1761282942479,2.63,193.47,193.42,94.27122864]
[1761282942682,6.45060235,193.47,193.42,94.27122864]
[1761282942977,2.63,193.46,193.42,94.27122864]
[1761282943366,2.63,193.46,193.36,4.55991966]
[1761282943569,2.63,193.45,193.37,2.21]
[1761282943767,6.45060265,193.45,193.37,2.21]
[1761282943971,2.63,193.45,193.37,2.21]
[1761282944772,2.63,193.44,193.37,2.21]
[1761282944980,6.45075958,193.44,193.37,2.21]
[1761282945178,2.63,193.44,193.37,2.21]
[1761282945973,2.63,193.44,193.37,4.55991966]
[1761282946477,6.45067191,193.44,193.37,4.55991966]
[1761282946780,2.63,193.44,193.37,4.55991966]
[1761282947475,2.63,193.44,193.37,2.21]
[1761282947675,6.44906536,193.44,193.37,2.21]
[1761282948068,2.63,193.44,193.37,2.21]
[1761282948680,2.63,193.44,193.36,43.02]
[1761282948875,2.63,193.43,193.36,43.02]
[1761282949076,2.63,193.43,193.36,45.23]
[1761282949469,2.63,193.43,193.37,2.21]
[1761282955797,2.63,193.48,193.37,2.21]
[1761282955997,2.63,193.47,193.37,2.21]
[1761282956492,2.63,193.46,193.37,2.21]
[1761282956692,2.63,193.45,193.37,2.21]
[1761282960198,2.81,193.44,193.37,2.21]
[1761282960701,2.81,193.44,193.33,2.21]
[1761282961004,2.81,193.43,193.33,2.21]
[1761282961599,2.81,193.42,193.33,2.21]
[1761282961996,2.81,193.42,193.32,2.21]
[1761282961997,3.80999429,193.42,193.32,2.21]
[1761282962198,2.81,193.41,193.32,2.21]
[1761282963803,2.81,193.41,193.33,2.21]
[1761282970207,2.81,193.41,193.32,43.02]
[1761282974805,2.81,193.4,193.32,43.02]
[1761282975512,2.81,193.4,193.32,45.23]
[1761282976014,2.81,193.4,193.32,43.02]
[1761282976608,2.81,193.39,193.31,93.14271381]
[1761282976810,2.81,193.38,193.26,2.21]
[1761282977106,2.81,193.35,193.24,2.34991966]
[1761282977310,2.81,193.35,193.25,2.21]
[1761282979308,2.81,193.34,193.25,2.21]
[1761282979508,2.81,193.33,193.25,2.21]
[1761282980210,2.81,193.33,193.22,4.55991966]
[1761282980409,2.81,193.32,193.22,4.55991966]
[1761282981208,2.81,193.29,193.19,2.21]
[1761282981616,2.81,193.26,193.15,2.21]
[1761282982218,2.81,193.26,193.16,2.21]
[1761282982723,2.81,193.29,193.22,2.21]
[1761283000836,2.81,193.29,193.25,2.22]
[1761283002638,2.81,193.29,193.23,3.72722856]
[1761283003139,2.81,193.29,193.23,2.22]
[1761283003630,2.66,193.31,193.23,2.22]
[1761283003829,4.16722856,193.31,193.23,2.22]
[1761283005437,2.66,193.31,193.26,3.72722856]
[1761283005638,2.66,193.31,193.27,2.22]
[1761283005831,2.66,193.34,193.31,2.22]
[1761283006034,2.66,193.37,193.31,2.22]
[1761283006233,2.66,193.36,193.31,2.22]
[1761283007140,2.66,193.36,193.32,1.50722856]
[1761283007341,2.66,193.36,193.33,2.22]
[1761283007536,2.66,193.35,193.32,3.72722856]
[1761283008043,2.66,193.35,193.32,1.50722856]
[1761283008341,2.66,193.35,193.3,1.50722856]
[1761283008538,2.66,193.35,193.3,3.72722856]
[1761283009141,2.66,193.35,193.31,2.22]
[1761283009341,2.66,193.35,193.31,3.72722856]
[1761283010346,2.66,193.35,193.31,1.50722856]
[1761283011236,2.66,193.35,193.29,1.50722856]
[1761283011440,2.66,193.34,193.29,1.50722856]
[1761283012050,2.66,193.34,193.27,1.50722856]
[1761283012746,2.66,193.34,193.26,1.50722856]
[1761283013047,2.66,193.34,193.25,2.22]
[1761283013048,2.66,193.36,193.29,1.50722856]
[1761283013847,2.66,193.35,193.29,1.50722856]
[1761283014149,3.83783952,193.36,193.27,3.72722856]
[1761283014150,2.66,193.34,193.27,3.72722856]
[1761283014551,2.66,193.34,193.27,2.22]
[1761283014746,2.66,193.33,193.27,3.72722856]
[1761283017848,1.50722856,193.37,193.27,3.72722856]
[1761283017849,12.34895761,193.36,193.27,3.72722856]
[1761283018049,2.66,193.33,193.27,3.72722856]
[1761283018243,2.66,193.33,193.28,2.22]
[1761283019054,2.74,193.32,193.28,2.22]
[1761283019651,3.87578535,193.33,193.28,2.22]
[1761283019852,2.74,193.33,193.28,2.22]
[1761283020058,2.74,193.33,193.29,1.50722856]
[1761283020360,2.74,193.32,193.29,1.50722856]
[1761283020554,2.74,193.32,193.27,3.71722856]
[1761283021053,2.74,193.32,193.27,1.50722856]
[1761283021455,6.61578535,193.32,193.27,1.50722856]
[1761283021649,3.87578535,193.31,193.27,1.50722856]
[1761283021851,2.74,193.3,193.23,2.21]
[1761283022054,2.74,193.3,193.25,2.21]
[1761283023259,2.74,193.3,193.26,1.50722856]
[1761283023455,2.74,193.3,193.27,2.21]
[1761283023656,2.74,193.29,193.26,1.50722856]
[1761283023862,2.74,193.29,193.26,3.71722856]
[1761283024163,2.74,193.29,193.24,3.71722856]
[1761283024366,2.74,193.29,193.24,2.21]
[1761283025358,6.62244524,193.29,193.24,2.21]
[1761283025558,3.88244524,193.29,193.24,2.21]
[1761283025754,3.88244524,193.3,193.24,2.21]
[1761283025957,6.62244524,193.31,193.25,3.71722856]
[1761283026155,11.2360667,193.31,193.25,3.71722856]
[1761283026355,3.88244524,193.3,193.25,3.71722856]
[1761283026555,3.88244524,193.3,193.26,2.21]
[1761283026765,2.74,193.29,193.26,2.21]
[1761283027261,2.74,193.32,193.26,2.21]
[1761283027462,3.88487339,193.31,193.26,2.21]
[1761283027657,3.88487339,193.3,193.28,2.21]
[1761283028054,8.50040427,193.32,193.28,2.21]
[1761283028252,2.74,193.35,193.3,2.21]
[1761283028456,8.49952793,193.34,193.3,2.21]
[1761283028754,2.74,193.32,193.29,3.71722856]
[1761283029865,6.62462744,193.32,193.29,3.71722856]
[1761283030064,2.74,193.32,193.29,3.71722856]
[1761283030760,3.88440823,193.33,193.31,1.50722856]
[1761283030969,2.74,193.34,193.31,1.50722856]
[1761283031164,2.74,193.33,193.3,2.21]
[1761283032462,11.23692661,193.35,193.3,2.21]
[1761283032769,2.74,193.38,193.32,2.21]
[1761283033062,6.6232592,193.37,193.33,1.50722856]
[1761283033259,4.61298648,193.38,193.36,2.21]
[1761283033569,1.50722856,193.45,193.36,2.21]
[1761283033570,15.20992346,193.4,193.36,2.21]
[1761283033761,8.49553064,193.39,193.36,2.21]
[1761283033962,3.88254416,193.38,193.36,2.21]
[1761283034174,6.62254416,193.39,193.36,2.21]
[1761283034464,3.88254416,193.38,193.36,2.21]
[1761283034664,6.62254416,193.39,193.36,2.21]
[1761283034855,3.88254416,193.38,193.36,2.21]
[1761283035054,6.62254416,193.39,193.36,2.21]
[1761283035255,7.35120083,193.41,193.37,3.71722856]
[1761283035460,7.82039213,193.46,193.37,1.50722856]
[1761283035461,11.2313737,193.4,193.37,1.50722856]
[1761283035659,3.88017287,193.39,193.35,1.50722856]
[1761283035861,2.74,193.41,193.37,3.71722856]
[1761283036660,6.6200075,193.41,193.37,3.71722856]
[1761283036958,2.74,193.41,193.37,3.71722856]
[1761283037166,8.54433849,193.44,193.37,3.71722856]
[1761283037167,3.87839273,193.43,193.38,2.21]
[1761283037365,3.87839273,193.44,193.41,1.50722856]
[1761283037566,2.74,193.45,193.41,1.50722856]
[1761283037956,2.74,193.44,193.41,1.50722856]
[1761283038861,2.74,193.44,193.41,3.71722856]
[1761283039761,7.33872151,193.48,193.41,3.71722856]
[1761283039961,3.87255907,193.47,193.41,3.71722856]
[1761283040159,3.87255907,193.47,193.41,1.50722856]
[1761283040360,2.74,193.46,193.42,2.21]
[1761283041369,3.87255907,193.47,193.36,1.50722856]
[1761283041370,2.74,193.43,193.36,1.50722856]
[1761283041676,2.74,193.43,193.34,3.71722856]
[1761283042072,2.74,193.43,193.34,1.50722856]
[1761283042370,2.74,193.43,193.35,2.21]
[1761283042575,2.74,193.43,193.36,1.50722856]
[1761283042775,2.74,193.43,193.36,3.71722856]
[1761283042976,2.74,193.46,193.39,2.21]
[1761283043179,2.74,193.45,193.39,2.21]
[1761283043476,2.74,193.48,193.41,2.21]
[1761283043775,2.74,193.47,193.41,2.21]
[1761283045669,2.74,193.47,193.42,3.71722856]
[1761283046567,1.50722856,193.46,193.42,2.21]
[1761283046772,4.24722856,193.46,193.42,2.21]
[1761283048275,3.86770612,193.48,193.42,2.21]
[1761283048480,2.69,193.51,193.43,2.21]
[1761283048481,1.50722856,193.5,193.43,2.21]
[1761283048875,1.50722856,193.48,193.43,2.21]
[1761283049583,4.19722856,193.5,193.43,2.21]
[1761283050278,1.50722856,193.48,193.43,2.21]
[1761283050475,4.15722856,193.48,193.43,2.21]
[1761283053686,1.50722856,193.48,193.43,2.21]
[1761283054182,1.50722856,193.5,193.43,2.21]
[1761283054383,4.15722856,193.5,193.43,2.21]
[1761283055780,2.65,193.49,193.43,2.21]
[1761283065877,2.65,193.52,193.43,2.21]
[1761283067192,2.65,193.52,193.45,2.21]
[1761283073610,6.50238434,193.52,193.45,2.21]
[1761283073903,4.62878727,193.53,193.46,2.21]
[1761283074102,2.65,193.55,193.46,2.21]
[1761283074403,6.50646235,193.55,193.47,2.35062067]
[1761283074708,11.13524962,193.55,193.48,2.21]
[1761283074906,8.48524962,193.54,193.48,2.21]
[1761283075209,35.17093025,193.59,193.48,2.21]
[1761283075210,2.65,193.57,193.48,2.21]
[1761283075811,2.65,193.55,193.48,2.21]
[1761283076108,7.29493741,193.55,193.48,2.21]
[1761283076310,2.65,193.55,193.48,2.21]
[1761283077205,11.15680203,193.55,193.48,2.21]
[1761283077407,8.50336323,193.54,193.48,2.21]
[1761283077706,3.85704809,193.54,193.48,2.21]
[1761283078004,2.65,193.55,193.48,2.21]
[1761283078605,11.15599298,193.55,193.48,2.21]
[1761283078904,8.50599298,193.54,193.48,2.21]
[1761283079105,3.85704809,193.54,193.48,2.21]
[1761283079309,8.50758646,193.54,193.48,2.21]
[1761283079711,2.64,193.53,193.48,2.21]
[1761283079911,2.64,193.52,193.48,2.21]
[1761283080111,2.64,193.51,193.48,2.21]
[1761283080908,2.64,193.51,193.45,2.21]
[1761283081109,7.29385619,193.5,193.45,2.21]
[1761283081304,4.65385619,193.52,193.45,2.21]
[1761283081611,8.51604698,193.52,193.45,2.21]
[1761283081813,11.15604698,193.52,193.45,2.21]
[1761283082014,4.65385619,193.51,193.45,2.21]
[1761283082311,2.64,193.52,193.45,2.21]
[1761283082509,4.65385619,193.51,193.45,2.21]
[1761283082816,8.51724806,193.52,193.45,2.21]
[1761283083008,4.65385619,193.51,193.45,2.21]
[1761283083214,2.64,193.53,193.45,2.21]
[1761283083519,4.65385619,193.52,193.45,2.21]
[1761283084216,4.65385619,193.52,193.46,2.21]
[1761283085515,2.64,193.53,193.46,2.21]
[1761283085821,2.64,193.51,193.39,2.21]
[1761283086024,2.64,193.48,193.39,2.21]
[1761283086211,2.64,193.47,193.39,2.21]
[1761283088318,7.29385619,193.47,193.39,2.21]
[1761283088519,2.64,193.47,193.39,2.21]
[1761283089419,2.64,193.47,193.4,2.21]
[1761283090316,7.35909988,193.47,193.4,2.21]
[1761283090618,2.64,193.47,193.4,2.21]
[1761283091616,7.35940668,193.47,193.4,2.21]
[1761283091812,2.64,193.47,193.4,2.21]
[1761283092018,2.64,193.45,193.4,2.21]
[1761283092319,2.64,193.44,193.37,2.21]
[1761283093022,11.22477984,193.47,193.38,2.21]
[1761283093215,8.58477984,193.46,193.38,2.21]
[1761283093415,3.86687664,193.46,193.39,2.21]
[1761283093617,2.64,193.47,193.39,2.21]
[1761283093814,8.58529718,193.49,193.39,2.21]
[1761283094017,11.22529718,193.48,193.39,4.56062067]
[1761283094217,8.58529718,193.47,193.4,2.21]
[1761283094422,3.86750641,193.47,193.4,2.21]
[1761283094616,2.64,193.48,193.4,2.21]
[1761283094822,4.71908666,193.47,193.4,2.21]
[1761283096222,3.86756777,193.47,193.4,2.21]
[1761283096623,2.64,193.47,193.4,2.21]
[1761283097221,6.50756777,193.47,193.4,2.21]
[1761283097428,2.64,193.47,193.4,2.21]
[1761283098028,2.64,193.47,193.41,2.21]
[1761283098422,12.48391908,193.51,193.41,2.21]
[1761283098630,8.57617624,193.5,193.46,2.21]
[1761283098832,4.71281044,193.49,193.46,2.21]
[1761283099032,11.21636043,193.51,193.46,2.21]
[1761283099330,2.64,193.49,193.45,2.21]
[1761283099525,7.35281044,193.49,193.45,2.21]
[1761283099725,2.64,193.49,193.45,2.21]
[1761283099925,2.64,193.49,193.44,42.94]
[1761283100226,2.64,193.49,193.44,45.15]
[1761283100730,2.64,193.47,193.44,42.94]
[1761283100927,6.50442868,193.47,193.4,2.21]
[1761283101130,2.64,193.45,193.4,2.21]
[1761283101327,2.64,193.45,193.38,45.29062067]
[1761283101527,2.64,193.45,193.38,47.50062067]
[1761283101931,2.64,193.45,193.39,2.21]
[1761283102533,7.35331548,193.45,193.39,2.21]
[1761283102831,2.64,193.45,193.39,2.21]
[1761283103130,2.64,193.48,193.39,2.21]
[1761283103331,11.21371005,193.47,193.39,2.21]
[1761283103527,4.71155547,193.46,193.39,2.21]
[1761283104129,11.21444677,193.46,193.39,2.21]
[1761283104324,2.64,193.45,193.39,2.21]
[1761283107228,2.64,193.45,193.42,2.21]
[1761283108032,8.66378424,193.54,193.42,2.21]
[1761283108033,2.67,193.49,193.42,2.21]
[1761283108335,11.24467843,193.48,193.42,2.21]
[1761283108637,2.67,193.48,193.42,2.21]
[1761283110446,8.56814897,193.5,193.47,2.35062067]
[1761283110627,2.64,193.52,193.48,2.21]
[1761283110832,4.70647161,193.51,193.5,4.56062067]
[1761283111037,9.51669292,193.61,193.5,4.56062067]
[1761283111038,11.20875824,193.54,193.5,4.56062067]
[1761283111344,11.20875824,193.53,193.5,4.56062067]
[1761283111538,2.64,193.52,193.5,2.35062067]
[1761283112127,2.64,193.54,193.5,2.35062067]
[1761283112331,4.70407362,193.53,193.51,2.21]
[1761283112541,2.64,193.54,193.51,2.21]
[1761283112733,2.64,193.57,193.51,2.21]
[1761283113040,2.64,193.55,193.51,2.21]
[1761283113239,2.64,193.54,193.51,2.21]
[1761283113639,3.86041693,193.54,193.51,2.21]
[1761283113944,2.64,193.55,193.51,2.21]
[1761283114240,2.64,193.54,193.51,2.21]
[1761283115737,11.09850294,193.57,193.51,2.21]
[1761283115940,3.85987187,193.56,193.51,2.21]
[1761283116340,2.64,193.57,193.51,2.21]
[1761283116538,2.64,193.56,193.51,2.21]
[1761283117047,6.49987187,193.56,193.51,2.21]
[1761283117336,2.64,193.56,193.52,2.21]
[1761283119543,7.23485142,193.58,193.53,2.35062067]
[1761283119737,2.64,193.56,193.51,42.92]
[1761283120744,2.64,193.56,193.51,45.13]
[1761283121141,2.64,193.55,193.51,45.13]
[1761283121939,2.64,193.55,193.51,42.92]
[1761283124844,2.64,193.55,193.52,1.50298911]
[1761283125147,2.64,193.55,193.51,42.92]
[1761283125347,2.64,193.55,193.51,44.42298911]
[1761283126041,2.64,193.55,193.53,1.50298911]
[1761283129350,2.64,193.55,193.54,1.50298911]
[1761283129751,2.64,193.58,193.54,3.71298911]
[1761283131249,2.64,193.58,193.55,1.50298911]
[1761283132049,2.64,193.58,193.55,3.71298911]
[1761283132245,2.64,193.65,193.58,2.21]
[1761283132449,2.64,193.65,193.57,44.42298911]
[1761283132653,2.64,193.65,193.57,19.34298911]
[1761283132840,2.64,193.64,193.57,19.34298911]
[1761283133039,2.64,193.63,193.57,19.34298911]
[1761283136548,2.64,193.63,193.59,1.50298911]
[1761283139453,2.64,193.63,193.62,1.50298911]
[1761283142658,2.64,193.63,193.6,1.50298911]
[1761283151354,2.64,193.63,193.57,1.50298911]
[1761283151857,2.66,193.62,193.59,1.50298911]
[1761283152162,2.66,193.67,193.61,1.50298911]
[1761283152361,2.66,193.67,193.63,1.50298911]
[1761283152757,2.66,193.66,193.63,1.50298911]
[1761283152962,2.66,193.65,193.63,1.50298911]
[1761283153262,2.66,193.64,193.63,1.50298911]
[1761283153658,2.66,193.66,193.63,3.71298911]
[1761283153855,2.66,193.66,193.63,1.50298911]
[1761283154369,2.66,193.65,193.63,1.50298911]
[1761283155667,2.66,193.68,193.64,2.21]
[1761283155867,2.66,193.68,193.66,1.50298911]
[1761283156069,2.66,193.68,193.64,1.50298911]
[1761283156566,2.66,193.67,193.64,1.50298911]
[1761283156769,2.66,193.66,193.64,1.50298911]
[1761283158269,2.66,193.66,193.62,1.50298911]
[1761283158762,2.66,193.65,193.62,1.50298911]
[1761283159361,2.66,193.65,193.62,3.71298911]
[1761283159770,2.66,193.65,193.62,1.50298911]
[1761283161672,2.66,193.65,193.62,3.71298911]
[1761283162067,2.66,193.65,193.62,1.50298911]
[1761283162970,2.66,193.65,193.58,2.21]
[1761283163170,2.66,193.65,193.62,1.50298911]
[1761283169779,2.66,193.65,193.6,1.50298911]
[1761283169980,2.66,193.65,193.61,2.21]
[1761283170677,11.15996873,193.66,193.61,2.21]
[1761283170878,2.73,193.66,193.62,1.50298911]
[1761283171079,2.73,193.66,193.62,3.71298911]
[1761283171677,2.73,193.65,193.62,1.50298911]
[1761283171878,2.73,193.64,193.6,3.71298911]
[1761283173283,9.51669292,193.8,193.64,2.21]
[1761283173479,15.37389665,193.9,193.8,2.21]
[1761283173480,9.51669292,193.9,193.8,2.21]
[1761283173682,2.73,193.91,193.82,1.50298911]
[1761283175183,2.73,193.91,193.84,1.50298911]
[1761283175384,2.73,193.91,193.86,1.50298911]
[1761283175583,2.73,193.91,193.86,3.71298911]
[1761283177985,2.73,193.91,193.87,2.21]
[1761283178784,2.73,193.91,193.78,2.21]
[1761283178978,2.73,193.89,193.82,1.50298911]
[1761283179285,2.73,193.89,193.8,1.50298911]
[1761283179685,2.73,193.87,193.8,2.21]
[1761283180391,1.50298911,193.88,193.73,43.1]
[1761283180392,4.23298911,193.85,193.76,3.71298911]
[1761283180689,4.23298911,193.85,193.77,2.21]
[1761283181487,2.73,193.85,193.77,2.21]
[1761283181893,2.73,193.85,193.79,1.50298911]
[1761283184788,2.73,193.85,193.77,4.55198707]
[1761283187390,2.73,193.85,193.73,43.1]
[1761283187590,2.73,193.85,193.75,2.34198707]
[1761283187996,2.73,193.85,193.75,4.55198707]
[1761283191096,2.73,193.85,193.76,2.21]
[1761283202217,2.73,193.85,193.76,4.55198707]
[1761283203719,2.73,193.85,193.76,2.34198707]
[1761283203925,2.73,193.85,193.7,2.34198707]
[1761283203926,2.73,193.85,193.79,4.54198707]
[1761283204816,2.73,193.85,193.78,2.34198707]
[1761283212125,2.73,193.85,193.76,2.2]
[1761283212328,2.73,193.85,193.73,4.54198707]
[1761283213437,2.34198707,193.81,193.67,2.34198707]
[1761283213626,2.63,193.8,193.67,2.2]
[1761283214527,2.34198707,193.78,193.64,2.2]
[1761283214830,2.34198707,193.78,193.64,4.54198707]
[1761283214831,2.63,193.77,193.64,4.54198707]
[1761283215029,2.63,193.77,193.65,2.2]
[1761283217535,2.63,193.77,193.64,2.34198707]
[1761283218133,2.63,193.77,193.6,4.76675867]
[1761283218325,2.63,193.69,193.57,4.76675867]
[1761283218727,2.63,193.66,193.57,4.76675867]
[1761283218935,2.63,193.66,193.56,4.76675867]
[1761283219136,2.63,193.66,193.55,4.76675867]
[1761283219836,2.63,193.66,193.54,6.96675867]
[1761283220332,2.63,193.66,193.55,2.2]
[1761283223837,2.63,193.66,193.57,2.2]
[1761283231241,2.63,193.66,193.59,4.54198707]
[1761283232641,2.63,193.66,193.6,2.2]
[1761283243045,2.63,193.66,193.59,2.34198707]
[1761283244645,2.63,193.66,193.57,2.2]
[1761283244949,2.63,193.66,193.58,2.2]
[1761283245151,2.63,193.66,193.58,3.70214563]
[1761283249753,2.63,193.66,193.58,1.50214563]
[1761283249954,2.63,193.66,193.59,2.2]
[1761283255560,2.67,193.65,193.59,2.2]
[1761283256859,2.67,193.63,193.59,2.2]
[1761283257762,2.67,193.63,193.56,1.50214563]
[1761283257958,2.67,193.63,193.57,2.2]
[1761283265173,2.67,193.63,193.58,1.50214563]
[1761283265475,2.67,193.63,193.58,3.70214563]
[1761283265673,2.67,193.63,193.59,2.2]
[1761283267080,2.67,193.63,193.58,3.70214563]
[1761283267481,2.67,193.63,193.59,2.2]
[1761283269679,2.67,193.63,193.56,1.50214563]
[1761283270280,2.67,193.63,193.56,3.70214563]
[1761283271382,2.67,193.63,193.57,2.2]